Workbook

Sheet Properties for sale
A1: Address | B1: Name | C1: Studio | D1: 1 bed | E1: 2 bed | F1: 3 bed | G1: 4 bed | H1: Units | I1: Year | J1: Sq' | K1: NOI | L1: Price
A2: 930 E Knapp | B2: Montgomery House | H2: 20 | I2: 1893 | J2: 7817 | K2: 72907 | L2: 1000000
B3: Mixed Use Building
A4: 1030 N Marshall St | B4: Marshall Building | D4: 3 | E4: 2 | F4: 4 | G4: 7 | H4: 16 | I4: 1906 | J4: 25180 | K4: 174307 | L4: 2750000
B5: Red Brick Building
A6: 2519-2533- 2549 N Lake | B6: Lake Dr Apts | D6: 12 | E6: 3 | F6: 11 | H6: 26 | I6: 1911/1943 | J6: 29213 | K6: 222028 | L6: 4250000
B7: 6 buildings, 4,4,4,3,2,9
A8: 1800-1806 E. Kenmore | B8: Shorewood Apts | D8: 6 | E8: 10 | H8: 16 | I8: 1926 | J8: 13040 | K8: 94567 | L8: 1600000
B9: 2 buildings 8 & 8 units
A10: 3220 N Bartlett | B10: Townhouses | E10: 6 | H10: 6 | I10: 1967 | J10: 6320 | K10: 56986 | L10: 975000
A12: 2511 E. Belleview | B12: Downer Area | E12: 6 | F12: 19 | H12: 25 | I12: 1900's | J12: 43688 | K12: 219266 | L12: 3750000
A14: 2575 N Stowell | B14: Downer Area | F14: 6 | H14: 7 | I14: 1915 | J14: 8590 | K14: 60531 | L14: 950000
A16: 3438 N. Oakland | B16: Underground Parking | D16: 21 | E16: 5 | H16: 36 | I16: 1960's | J16: 26880 | K16: 196568 | L16: 3850000
A18: 3402 N. Oakland | B18: Underground Parking | D18: 24 | H18: 24 | I18: 1960's | J18: 17568 | K18: 109046 | L18: 2500000
A20: Totals | H20: =SUM(H2:H18) -> 176 | K20: =SUM(K2:K18) -> 1206206 | L20: =SUM(L2:L18) -> 21625000
A34: Presented By: | B34: The Realty Company LLC | D34: 262-786-7690
B35: Lorna Mueller | D35: lorna@therealtycompanyllc.com
B36: Josh Manchester | D36: josh@therealtycompanyllc.com

Sheet N. Lake Dr.
C2: Purchase Price:
A4: Property Location
A5: 2519-2549 N. Lake Dr
A6: Milwaukee WI
A8: Type of Property: | C8: Multifamily | E8: Prurchase Price | F8: 4100000 | L8: # of Units | N8: 4 | P8: 4 | R8: 4 | T8: 3 | V8: 2 | X8: 9
A9: Size of property | C9: 5 Buildings | L9: Address | M9: bed | N9: 2519 | O9: bed | P9: 2523 | Q9: bed | R9: 2527 | S9: bed | T9: 2533 | U9: bed | V9: 2541 | W9: bed | X9: 2549
A10: Date:2/15/18 | C10: Units : | D10: 4 | E10: 4 | F10: 4 | G10: 3 | H10: 2 | I10: 9 | J10: =SUM(D10:I10) -> 26 | L10: Units #1 | M10: 1 | N10: 850 | O10: 1 | P10: 860 | Q10: 1 | R10: 895 | S10: 2+ | T10: 1325 | U10: 3 | V10: 1670 | W10: 3 | X10: 1395
D11: 2519 | E11: 2523 | F11: 2527 | G11: 2533 | H11: 2541 | I11: 2549 | J11: Total | L11: 2 | M11: 1 | N11: 850 | O11: 1 | P11: 895 | Q11: 1 | R11: 950 | S11: 2 | T11: 950 | U11: 3 | V11: 1875 | W11: 3 | X11: 1395
A12: Rental Income | D12: 40920 | E12: 42660 | F12: 44940 | G12: 48600 | H12: 42540 | I12: 150120 | J12: =SUM(D12:I12) -> 369780 | L12: 3 | M12: 1 | N12: 850 | O12: 1 | P12: 925 | Q12: 1 | R12: 950 | S12: 3 | T12: 1775 | W12: 3 | X12: 1495
A13: Parking | C13: 17 spaces | J13: 15300 | L13: 4 | M13: 1 | N13: 860 | O13: 1 | P13: 875 | Q13: 1 | R13: 950 | W13: 3 | X13: 1495
A14: Other Income | D14: 1800 | E14: 1800 | F14: 1800 | I14: 3600 | J14: =SUM(D14:I14) -> 9000 | L14: 5 | W14: 3 | X14: 1395
A15: Vacancy | L15: 6 | W15: 3 | X15: 1450
A16: Gross operating Income | D16: =SUM(D12:D14)-D15 -> 42720 | E16: 44460 | F16: 46740 | G16: 48600 | H16: 42540 | I16: 153720 | J16: =SUM(J12:J15) -> 394080 | L16: 7 | W16: 3 | X16: 1495
D17: 1 set w/d | E17: 1 set w/d | F17: 1 set w/d | G17: in unit w/d | I17: 2 set w/d | L17: 8 | W17: 3 | X17: 1495
A18: OPERATING EXPENSES | L18: 9 | W18: 2 | X18: 895
A19: Taxes | D19: 9002 | E19: 9004 | F19: 9002 | G19: 11858 | H19: 8071 | I19: 23163 | L19: month | N19: =SUM(N10:N18) -> 3410 | P19: =SUM(P10:P18) -> 3555 | R19: =SUM(R10:R18) -> 3745 | T19: =SUM(T10:T18) -> 4050 | V19: =SUM(V10:V18) -> 3545 | X19: =SUM(X10:X18) -> 12510
A20: Insurance | D20: 1053 | E20: 1053 | F20: 1053 | G20: 1273 | H20: 800 | I20: 2531 | L20: Annual | N20: 40920 | P20: 42660 | R20: 44940 | T20: 48600 | V20: 42540 | X20: 150120
A21: Management | C21: 0.05 | D21: 2046 | E21: 2050 | F21: 2247 | G21: 2430 | I21: 7506
A22: Trash | D22: 1073 | E22: 1194 | F22: 953 | G22: 1073 | H22: 6600 | I22: 475
A23: Utilities | D23: 1642 | E23: 967 | F23: 438 | G23: 3069 | H23: 2783 | I23: 10224
A24: Repairs and Maintenance | D24: 1761 | E24: 3010 | F24: 919 | G24: 566 | H24: 1998 | I24: 2242
A25: Pest Control | D25: 108 | E25: 114 | F25: 102 | G25: 106 | H25: 41 | I25: 118
A26: Advertising and promotions | D26: 52 | E26: 60 | F26: 44 | G26: 77 | I26: 82
A27: Landscaping | D27: 900 | E27: 752 | F27: 660 | G27: 775 | H27: 650 | I27: 1067
A28: Supplies and Paint | D28: 2260 | E28: 1233 | F28: 1534 | G28: 515 | I28: 8356
A29: Total Expense | D29: =SUM(D19:D28) -> 19897 | E29: 19437 | F29: 16952 | G29: 21742 | H29: 20943 | I29: 55764 | J29: =SUM(D29:I29) -> 154735
A30: Net Operating Income | D30: =D16-D29 -> 22823 | E30: 25023 | F30: 29788 | G30: 26858 | H30: 21597 | I30: 97956 | J30: 239345
A36: Rent Rolls | D36: 2519 | E36: 2523 | F36: 2527 | G36: 2533 | H36: 2541 | I36: 2549
C37: 1 | D37: 850 | E37: 860 | F37: 895 | G37: 1325 | I37: 1395
C38: 2 | D38: 850 | E38: 895 | F38: 950 | G38: 950 | I38: 1395
C39: 3 | D39: 850 | E39: 925 | F39: 950 | G39: 1775 | I39: 1495
C40: 4 | D40: 860 | E40: 875 | F40: 950 | I40: 1495
C41: 5 | I41: 1395
C42: 6 | I42: 1450
C43: 7 | I43: 1495
C44: 8 | I44: 1495
C45: 9 | I45: 895
D46: Centeral A/C | E46: Centeral A/C | F46: Centeral A/C | G46: boiler | H46: boiler | I46: boiler
D47: furnaces | E47: furnaces | F47: furnaces | G47: 3 water heaters | H47: 2 water heaters | I47: 2 water heaters
D48: waterheater | E48: waterheater | F48: waterheater | G48: in unit washer/ dry | H48: in unit washer/dry | I48: Washer/dryer coin

Sheet Belleview
A1: Annual Property Operating Data
D2: Purchase Price: | F2: 3750000
B4: Property Location
C5: 2511 E Belleview
C6: (2576-2594 N Stowell)
C7: Milwaukee WI 53202
B8: Type of Property: | D8: Multifamily
B9: Size of property | D9: 25 Units
B10: Date: | D10: 2017-02-01
A11: Annual Figures | F11: 2017
B12: Rental Income | F12: 370800
B13: Other Income | F13: 6150
B14: Vacancy | D14: 0.03 | F14: 18540
B15: Gross operating Income | F15: =SUM(F12:F13)-F14 -> 358410
B16: OPERATING EXPENSES
B17: Taxes | C17: 2015 | F17: 66028
B18: Insurance | F18: 8832
B19: Management | D19: 0.05 | F19: 18540
B20: Trash | F20: 4277.65
B21: Utilities | F21: 26960.25
B22: Repairs and Maintenance | F22: 12250.66
B23: Pest Control | F23: 597.43
B24: Landscaping | F24: 1658.17
B25: Total Expense | D25: 0.4 | F25: =SUM(F17:F24) -> 139144.16
B26: Net Operating Income | F26: =F15-F25 -> 219265.84

Sheet Stowell
A1: Annual Property Operating Data
D2: Purchase Price: | F2: 950000
B4: Property Location
C5: 2575 N. Stowell
C6: Milwaukee WI 53202
B7: Type of Property: | D7: Multifamily
B8: Size of property | D8: 7 units
B9: Date: | D9: 2017-02-01
A10: Annual Figures | F10: 2017
B11: Rental Income | F11: 100680
B12: Other Income | F12: 5410
B13: Vacancy | D13: 0.03 | F13: 3000
B14: Gross operating Income | F14: =SUM(F11:F12)-F13 -> 103090
B15: OPERATING EXPENSES
B16: Taxes | C16: 2015 | F16: 20165.42
B17: Insurance | F17: 1998
B18: Management | D18: 0.05 | F18: 5034
B19: Trash | F19: 2721.78
B20: Utilities | F20: 6866.95
B21: Repairs and Maintenance | F21: 5055.57
B22: Pest Control | F22: 64.25
B23: Landscaping | F23: 652.48
B24: Reserves
B25: Total Expense | D25: 0.4 | F25: =SUM(F16:F24) -> 42558.45
B26: Net Operating Income | F26: =F14-F25 -> 60531.55

Sheet Kenmore
A1: Annual Property Operating Data
D2: Purchase Price: | F2: 1600000
B4: Property Location:
C5: 1800 E Kenmore
C6: Shorewood WI 53211
B7: Type of Property: | D7: Multifamily
B8: Size of property | D8: 16 units, 2 Buildings
B9: Date: | D9: 2017-02-01
B10: Annual Figures | F10: 2017
B11: Rental Income | F11: 158700
B12: Other Income | F12: 1500
B13: Vacancy | D13: 0.03 | F13: 4761
B14: Gross operating Income | F14: =SUM(F11:F12)-F13 -> 155439
B15: OPERATING EXPENSES
B16: Taxes | C16: 2015 | F16: 31045
B17: Insurance | F17: 3164
B18: Management | D18: 0.05 | F18: 7935
B19: Trash | F19: 3303
B20: Utilities | F20: 10899
B21: Repairs and Maintenance | F21: 6226
B22: Pest Control | F22: 106
B23: Landscaping | F23: 1368
B24: Total Expense | D24: 0.4 | F24: =SUM(F16:F23) -> 64046
B25: Net Operating Income | F25: =F14-F24 -> 91393

Sheet Bartlett
A1: Annual Property Operating Data
D2: Purchase Price: | F2: 975000
B4: Property Location
C5: 3220 N. Bartlett
C6: Milwaukee WI 53202
B7: Type of Property: | D7: Multifamily
B8: Size of property | D8: 6 Units , townhomes
B9: Date: | D9: 2017-02-01
A10: Annual Figures | F10: 2017
B11: Rental Income | F11: 86580
B12: Other Income
B13: Vacancy | D13: 0.03 | F13: 2594
B14: Gross operating Income | F14: =SUM(F11:F12)-F13 -> 83986
B15: OPERATING EXPENSES
B16: Taxes | C16: 2015 | F16: 18098
B17: Insurance | F17: 1443
B18: Management | D18: 0.05 | F18: 4329
B19: Trash | F19: 1555.85
B20: Utilities | F20: 433.85
B21: Repairs and Maintenance | F21: 237.93
B22: Pest Control | F22: 59.6
B23: Landscaping | F23: 842.4
B24: Reserves
B25: Total Expense | D25: 0.4 | F25: =SUM(F16:F24) -> 26999.63
B26: Net Operating Income | F26: =F14-F25 -> 56986.37

Sheet Marshall
A1: Annual Property Operating Data
D2: Purchase Price: | F2: 2750000
B4: Property Location
C5: 1030 N Marshall
C6: Milwaukee WI 53202
B7: Type of Property: | D7: Multifamily
B8: Size of property | D8: 16 units, 1 Buildings
B9: Date: | D9: 2017-02-01
B10: Annual | F10: 2017
B11: Rental Income | F11: 271620
B12: Other Income | F12: 675
B13: Vacancy | D13: 0.03 | F13: 8148
B14: Gross operating Income | F14: =SUM(F11:F12)-F13 -> 264147
B15: OPERATING EXPENSES
B16: Taxes | C16: 2015 | F16: 37580
B17: Insurance | F17: 5146
B18: Management | D18: 0.05 | F18: 13581
B19: Trash | F19: 2835
B20: Utilities | F20: 12591
B21: Repairs and Maintenance | F21: 22666
B22: Pest Control | F22: 106
B23: Landscaping | F23: 768
B24: Reserves
B25: Total Expense | D25: 0.4 | F25: =SUM(F16:F24) -> 95273
B26: Net Operating Income | F26: =F14-F25 -> 168874

Sheet 930 E Knapp
A1: Annual Property Operating Data
D2: Purchase Price: | F2: 1000000
B4: Property Location
B5: 920 E Knapp
B6: Milwaukee WI 53202
B7: Type of Property: | D7: Mix Use
B8: Size of property | D8: 20 units/ 19 commercial 1 residential
B9: Date: | D9: 2017-02-01
A10: Annual Figures | F10: 2017
B11: Rental Income | F11: 131520
B12: Other Income
B13: Vacancy | D13: 0.1 | F13: 13520
B14: Gross operating Income | F14: =SUM(F11:F12)-F13 -> 118000
B15: OPERATING EXPENSES
B16: Taxes | C16: 2015 | F16: 18629
B17: Insurance | F17: 951
B18: Management | D18: 0.05 | F18: 6576
B19: Trash | F19: 388.61
B20: Utilities | F20: 11873.39
B21: Repairs and Maintenance | F21: 6330.82
B22: Pest Control | F22: 124.34
B23: Landscaping | F23: 219.53
B24: Reserves
B25: Total Expense | D25: 0.4 | F25: =SUM(F16:F24) -> 45092.69
B26: Net Operating Income | F26: =F14-F25 -> 72907.31

Sheet 3402 Oakland
A2: Annual Property Operating Data
D3: Purchase Price: | F3: 2400000
F4: 17,568 sq' building
B5: Property Location
C6: 3402 N Oakland
C7: Milwaukee WI 53211
B8: Type of Property: | D8: Multifamily
B9: Size of property | D9: 24 units, 15 underground parking
B10: Date: | D10: 2016-12-27
A11: Annual Figures | F11: Actual 2016 | G11: 2017 Proforma
B12: Rental Income | F12: 221580 | G12: 223200
B13: Other Income | D13: laundry | F13: 3600 | G13: 22680
B14: Vacancy | F14: 18597 | G14: 11448
B15: Gross operating Income | F15: =SUM(F12:F13)-F14 -> 206583 | G15: 240192
B16: OPERATING EXPENSES
B17: Taxes | C17: 2016 | F17: 39240 | G17: 39473
B18: Insurance | F18: 4503 | G18: 5000
B19: Management | E19: 0.05 | F19: 9172 | G19: 10300
B20: Sewer | F20: 3143 | G20: 3143
B21: We Energies | F21: 10940 | G21: 11000
B22: Repairs and Maintenance | F22: 26314 | G22: 17000
B23: Trash | F23: 2228 | G23: 2300
B24: On Site | D24: in rent roll | G24: 1200
B25: Lawn and Snow | F25: 1043 | G25: 1100
B26: Elevator | F26: 954 | G26: 1000
B27: Reserves | G27: 4882
B28: Total Expense | F28: =SUM(F17:F27) -> 97537 | G28: =SUM(G17:G27) -> 96398
B29: Net Operating Income | F29: =F15-F28 -> 109046 | G29: =G15-G28 -> 143794

Sheet 3438 Oakland
A1: Annual Property Operating Data
D2: Purchase Price: | F2: 3400000
F3: 26,880 sq' building
B4: Property Location
C5: 3438 N Oakland
C6: Milwaukee WI 53211
B7: Type of Property: | D7: Multifamily
B8: Size of property | D8: 36 units, 15 underground parking
B9: Date: | D9: 2016-12-27
A10: Annual Figures | F10: Actual 2016 | G10: 2017
B11: Rental Income | F11: 324467 | G11: 345240
B12: Other Income | F12: 7839 | G12: 19980
B13: Vacancy | D13: 0.05 | G13: 17262
B14: Gross operating Income | F14: =SUM(F11:F12)-F13 -> 332306 | G14: 347958
B16: OPERATING EXPENSES
B17: Taxes | C17: 2015 | F17: 68430 | G17: 68430
B18: Insurance | F18: 8834 | G18: 8834
B19: Management | D19: 0.05 | F19: 13684 | G19: 17262
B20: Sewer | F20: 1662 | G20: 1662
B21: We Energies | F21: 15059 | G21: 15059
B22: Repairs and Maintenance | F22: 21568 | G22: 21568
B23: Pest Control | F23: 640 | G23: 640
B24: Trash | F24: 2874 | G24: 2874
B25: On Site | G25: 4800
B26: Lawn and Snow | F26: 1402 | G26: 1402
B27: Elevator | F27: 1900 | G27: 1900
B28: Reserves | D28: 0.02 | G28: 6959
B29: Total Expense | F29: =SUM(F17:F28) -> 136053 | G29: =SUM(G17:G28) -> 151390
B30: Net Operating Income | F30: =F14-F29 -> 196253 | G30: =G14-G29 -> 196568
